[Event "Vienna Championship 2022"]
[Site "Vienna"]
[Date "2022.09.21"]
[Round "5.1"]
[White "Steindl, Johannes"]
[Black "Schwabeneder, Florian"]
[Result "1/2-1/2"]
[ECO "B45"]
[WhiteElo "2327"]
[BlackElo "2417"]
[Annotator "TA"]
[PlyCount "71"]
[EventDate "2022.09.17"]
[EventType "tourn"]
[EventCountry "AUT"]
[SourceTitle "playchess.com"]
[Source "ChessBase"]
[SourceQuality "1"]
[TimeControl "5400+30"]

{[%evp 9,71,20,33,14,21,4,11,14,52,51,56,19,142,137,122,128,170,121,123,115,113,0,0,0,0,0,0,0,0,0,0,0,0,0,80,92,107,-8,147,164,154,-139,-139,-139,-139,-139,-129,-776,-770,-768,-729,-745,0,0,0,0,0,0,0,0,0,0,0,-87]} 1. e4 {[%emt 0:01:12]} c5 {[%emt 0:00:15]} 2. Nf3 {[%emt 0:00:06]} e6 {[%emt 0:00:18]} 3. d4 {[%emt 0:00:02]} cxd4 {[%emt 0:00:11]} 4. Nxd4 {[%emt 0:00:03]} Nc6 {[%emt 0:00:19]} 5. Nc3 {[%emt 0:00:06]} Bc5 {[%emt 0:00:59]} 6. Nxc6 {[%emt 0:05:51] B45: Sicilian Four Knights.} (6. Ndb5 {seems wilder.} Nf6 7. Nd6+ Ke7 8. Bf4) 6... bxc6 {[%emt 0:01:13]} 7. Bd3 {[%emt 0:01:00]} d5 {[%emt 0:09:48]} 8. O-O {[%emt 0:02:14]} Ne7 {[%emt 0:03:11] [#]} 9. Qh5 $146 {[%emt 0:02:32]} ({Predecessor:} 9. Kh1 e5 10. f4 exf4 11. Bxf4 O-O 12. Qf3 f5 13. exd5 cxd5 14. Bg5 Be6 15. Rad1 d4 16. Na4 Bd5 17. Qe2 {1-0 (17) Boix Redorta,R (1770)-Broadbent Brun,J (1488) Llinars del Valles 2021}) 9... Ng6 {[%emt 0:03:07]} 10. Bg5 {[%emt 0:10:58]} Qc7 {[%emt 0:04:11]} (10... Qd6 $11) 11. exd5 $16 {[%emt 0:12:46]} cxd5 {[%emt 0:00:18] [#]} 12. Nxd5 $1 {[%emt 0:00:20][%mdl 512]} exd5 {[%emt 0:03:02]} (12... Qb7 13. Nc3) 13. Bxg6 {[%emt 0:00:17]} (13. Rae1+ $18 Kf8 14. Bxg6 (14. Qe2 $2 Be6 $19)) 13... fxg6 {[%emt 0:01:42]} 14. Rae1+ {[%emt 0:00:46]} Kd7 {[%emt 0:24:01]} (14... Be7 $2 15. Qf3 Rf8 16. Qxd5 $18) 15. Qg4+ {[%emt 0:00:05] Dancing on a razor blade.} (15. Qf3 $1 $16 {[%cal Rf3d5]} Kc6 16. c4) 15... Kc6 $11 {[%emt 0:00:53]} 16. Qa4+ {[%emt 0:00:02]} Kb7 {[%emt 0:05:31]} 17. Qb3+ {[%emt 0:00:37]} Qb6 {[%emt 0:09:09] Hoping for ...Qxb3.} 18. Qxd5+ {[%emt 0:00:18]} Qc6 {[%emt 0:00:10]} 19. Qb3+ {[%emt 0:00:32]} Qb6 $1 {[%emt 0:00:31] ...Qxb3 is the strong threat.} 20. Qf7+ {[%emt 0:01:25]} Qc7 $1 {[%emt 0:02:00]} 21. Be7 {[%emt 0:00:18] And now Qd5+ would win.} Bb6 {[%emt 0:00:53]} (21... Kb8 $11 {remains equal.}) 22. c4 $1 $16 {[%emt 0:03:01][%mdl 1024] White has strong compensation.} Bf5 {[%emt 0:18:32] White must now prevent ...Rac8.} 23. b4 {[%emt 0:21:21] [#]} ({White has to play} 23. c5 $1 $16) 23... Qd7 $2 {[%emt 0:02:24]} (23... Raf8 $1 $11 24. Qd5+ Qc6 25. Qxc6+ Kxc6 26. Bxf8 Rxf8) 24. c5 {[%emt 0:04:44]} Bc7 {[%emt 0:00:10] [#]} 25. c6+ $2 {[%emt 0:02:34]} (25. b5 $1 $16 {is necessary to keep the advantage. aiming for c6+.} Qxb5 26. Bd6) 25... Qxc6 $17 {[%emt 0:00:44] Threatens to win with ...Rhe8.} 26. Rc1 {[%emt 0:01:25]} Qe6 {[%emt 0:03:50]} 27. Rxc7+ {[%emt 0:04:41]} Kxc7 {[%emt 0:00:01]} 28. Bd6+ $2 {[%emt 0:00:05][%mdl 8192]} Kxd6 $19 {[%emt 0:02:12]} 29. Rd1+ {[%emt 0:00:41]} Kc6 {[%emt 0:01:22]} 30. Rc1+ {[%emt 0:00:12]} Kd5 $2 {[%emt 0:02:33]} (30... Kb5 $19 31. Qc7 a5 32. a4+ Kxa4 33. Ra1+ Kb3 34. bxa5 Rhc8 35. Qb7+ Kc3 36. Qxg7+ Kc2) 31. Qb7+ {[%emt 0:07:39] The position is equal.} Ke5 {[%emt 0:01:18]} 32. Qxg7+ {[%emt 0:07:15]} Kf4 {[%emt 0:00:08]} 33. Qh6+ $1 {[%emt 0:00:12]} Ke5 {[%emt 0:00:15]} 34. Qg7+ {[%emt 0:08:39]} Kf4 {[%emt 0:00:03]} 35. Qh6+ $1 {[%emt 0:02:22]} Ke5 {[%emt 0:00:13]} ({Black should play} 35... g5 $11 36. g3+ Kf3 37. Rc3+ Ke2 38. Qxg5 Bg6) 36. Qg7+ $1 {[%emt 0:01:10] Weighted Error Value: White=0.37/Black=0.46} 1/2-1/2

[Event "Vienna Championship 2022"]
[Site "Vienna"]
[Date "2022.09.21"]
[Round "5.2"]
[White "Atzl, Florian"]
[Black "Vitouch, Anatol"]
[Result "0-1"]
[ECO "C42"]
[WhiteElo "2155"]
[BlackElo "2252"]
[Annotator "TA"]
[PlyCount "128"]
[EventDate "2022.09.17"]
[EventType "tourn"]
[EventCountry "AUT"]
[SourceTitle "playchess.com"]
[Source "ChessBase"]
[SourceQuality "1"]
[TimeControl "5400+30"]

{[%evp 13,128,31,35,4,15,18,30,23,33,30,31,8,28,25,33,33,31,20,34,10,7,0,28,22,68,0,0,-8,-3,-6,0,0,0,0,0,0,1,-17,27,12,27,6,93,0,0,0,0,-4,0,-4,0,0,0,0,13,0,6,0,0,0,0,-45,-45,-45,-37,-85,-20,-145,-139,-150,-150,-158,-172,-160,-135,-135,-135,-270,-270,-272,-269,-313,-310,-326,-313,-311,-308,-867,-847,-1240,-1152,-997,-918,-1712,-1723,-1733,-1382,-1119,-965,-1180,-1180,-29977,-29978,-29978,-29978,-29977,-29974,-29976,-12834,-29970,-2650,-29971,-29972,-29972,-29973,-6390,-5521]} 1. e4 {[%emt 0:00:47]} e5 {[%emt 0:00:05]} 2. Nf3 {[%emt 0:00:55]} Nf6 {[%emt 0:00:06]} 3. Nxe5 {[%emt 0:00:30]} d6 {[%emt 0:00:06]} 4. Nf3 {[%emt 0:00:05]} Nxe4 {[%emt 0:00:06]} 5. Nc3 {[%emt 0:00:08]} Nf6 {[%emt 0:00:05]} 6. d4 {[%emt 0:01:32]} Be7 {[%emt 0:00:05]} 7. Bd3 {[%emt 0:00:47]} O-O {[%emt 0:00:08]} 8. Ne2 {[%emt 0:04:12] Recently 8.0-0 got a lot of attention. C42: Petroff Defence: 3 Nxe5 and unusual White 3rd moves.} Re8 {[%emt 0:00:44]} 9. O-O {[%emt 0:00:40]} Bf8 {[%emt 0:10:13]} 10. Ng3 {[%emt 0:05:45] White has an edge.} g6 {[%emt 0:00:16] [#]} 11. c3 $146 {[%emt 0:01:18]} ({Predecessor:} 11. Bf4 Bg7 12. h3 b6 13. a4 a5 14. Qd2 Bb7 15. Bg5 Nbd7 16. Bc4 Bxf3 17. gxf3 {½-½ (33) Kryvoruchko,Y (2698)-Kamsky,G (2666) Germany 2019}) 11... Bg7 {[%emt 0:00:27]} 12. Bd2 {[%emt 0:01:47]} Nbd7 {[%emt 0:02:03]} 13. Qb3 {[%emt 0:03:42]} Nb6 {[%emt 0:17:34]} 14. Ng5 {[%emt 0:03:03]} d5 {[%emt 0:00:25]} 15. Rae1 {[%emt 0:01:24]} Bd7 {[%emt 0:01:40]} 16. Qc2 {[%emt 0:02:19]} a6 {[%emt 0:11:12]} 17. b3 {[%emt 0:12:08]} Bb5 {[%emt 0:02:30]} 18. Rxe8+ {[%emt 0:07:35]} Qxe8 {[%emt 0:05:13]} (18... Bxe8 $11 19. Bf4 Bb5) 19. Re1 {[%emt 0:00:57]} (19. c4 $1 $14 Bc6 20. Re1) 19... Qd7 $11 {[%emt 0:02:11]} 20. Nf3 {[%emt 0:01:36]} Bxd3 {[%emt 0:02:47]} 21. Qxd3 {[%emt 0:00:05]} Re8 {[%emt 0:01:33]} 22. Ne5 {[%emt 0:00:18]} Qc8 {[%emt 0:04:12]} 23. Re2 {[%emt 0:11:34]} Nbd7 {[%emt 0:04:22]} 24. f4 {[%emt 0:03:20]} Re7 {[%emt 0:04:22]} 25. h4 {[%emt 0:04:32]} Nf8 {[%emt 0:03:46]} 26. Qf3 {[%emt 0:03:18]} c6 {[%emt 0:02:34]} 27. f5 {[%emt 0:03:49] Black should prevent Bg5.} N6d7 {[%emt 0:05:08] [#]} (27... Ne4 $1 $11 {remains equal.}) 28. Bf4 {[%emt 0:06:40]} (28. Nxd7 $1 $16 Qxd7 29. Rf2) 28... Qe8 {[%emt 0:03:23][%cal Rd7e5]} 29. fxg6 {[%emt 0:04:05]} hxg6 {[%emt 0:00:08][%cal Rd7e5]} 30. Nxd7 {[%emt 0:06:44]} Rxe2 {[%emt 0:00:41]} (30... Nxd7 {seems wilder.} 31. Rxe7 Qxe7 32. h5 Nf6) 31. Qxe2 {[%emt 0:00:57]} Qxe2 {[%emt 0:01:03]} 32. Nxe2 {[%emt 0:00:09]} Nxd7 {[%emt 0:00:04][%mdl 4096] Endgame KBN-KBN} 33. Kf2 {[%emt 0:03:06]} Nf6 {[%emt 0:01:07]} 34. Ng3 {[%emt 0:00:36]} Kf8 {[%emt 0:01:08]} 35. Ke2 {[%emt 0:00:47]} Ke7 {[%emt 0:02:46]} 36. Kd3 {[%emt 0:00:43]} Ke6 {[%emt 0:01:35]} 37. Bc1 {[%emt 0:01:19]} Bf8 {[%emt 0:01:29]} 38. Bf4 {[%emt 0:02:53]} Be7 {[%emt 0:00:09]} 39. c4 {[%emt 0:01:16]} (39. Ke2 $1 $15 {was preferrable.}) 39... Ng4 {[%emt 0:04:42]} (39... Nh5 $17 40. Nxh5 gxh5) 40. h5 {[%emt 0:00:07] [#]} (40. Bg5 $11) 40... g5 $1 $17 {[%emt 0:00:28]} 41. Bb8 {[%emt 0:00:06]} f5 {[%emt 0:00:17][%cal Bf7f5,Bf5f4][%mdl 32]} 42. Ke2 {[%emt 0:03:00]} f4 {[%emt 0:01:17]} 43. Nf1 {[%emt 0:00:33]} Kf5 {[%emt 0:01:15]} 44. cxd5 {[%emt 0:00:32]} cxd5 {[%emt 0:00:06]} 45. Nd2 {[%emt 0:00:44]} (45. g3 $17) 45... Nf6 $19 {[%emt 0:01:00]} 46. h6 {[%emt 0:00:28]} Bf8 {[%emt 0:00:21]} 47. Nf3 {[%emt 0:00:04]} Bxh6 {[%emt 0:00:14]} 48. Ne5 {[%emt 0:00:04]} g4 {[%emt 0:01:54]} 49. Nf7 {[%emt 0:00:03]} Bf8 {[%emt 0:00:47]} 50. Bd6 $2 {[%emt 0:00:03]} (50. Be5) 50... Ke6 {[%emt 0:00:46]} 51. Bxf8 {[%emt 0:00:24]} Kxf7 {[%emt 0:00:05] KB-KN} 52. Bd6 {[%emt 0:00:14]} Nh5 {[%emt 0:00:05]} 53. a4 {[%emt 0:01:02]} Ke6 {[%emt 0:00:04]} 54. Be5 {[%emt 0:00:13]} Kf5 {[%emt 0:00:07]} 55. Kd3 {[%emt 0:00:26]} Ng3 {[%emt 0:00:09] ...Ne4 is the strong threat.} 56. b4 {[%emt 0:00:26]} b5 {[%emt 0:00:09]} 57. axb5 {[%emt 0:00:19]} axb5 {[%emt 0:00:06]} 58. Bd6 {[%emt 0:00:25]} Ne4 {[%emt 0:00:08]} 59. Be5 {[%emt 0:00:05]} Ng5 {[%emt 0:00:41]} 60. Bd6 {[%emt 0:00:39]} Ne6 {[%emt 0:00:06]} (60... g3 $142 61. Ke2 Ke4 62. Be7 Ne6 63. Kf1 Nxd4 64. Bg5 Nc2 65. Bh6 Ne3+ 66. Kg1 d4 67. Bg7 d3 68. Bc3 f3 69. gxf3+ Kxf3 70. Bd2 Nd1 71. Bh6 Nf2 72. Be3 Kxe3 73. Kg2 d2 74. Kxg3 d1=Q 75. Kh2 Qh1+ 76. Kg3 Qh3#) 61. Be5 {[%emt 0:00:17]} Nd8 {[%emt 0:00:33]} (61... g3 $142 62. Bb8 Kg4 63. Ke2 Nxd4+ 64. Ke1 f3 65. Kf1 Nc2 66. gxf3+ Kxf3 67. Bxg3 Kxg3 68. Ke2 d4 69. Kd2 Nxb4 70. Ke2 Kf4 71. Kd2 Kf3 72. Ke1 Ke3 73. Kd1 d3 74. Kc1 d2+ 75. Kd1 Nd3 76. Kc2 Ke2 77. Kc3 d1=Q 78. Kd4 Qh1 79. Kc3 Qh8+ 80. Kc2 Qb2#) 62. Bd6 {[%emt 0:00:41]} Nc6 {[%emt 0:00:06]} 63. Bc5 {[%emt 0:00:05]} g3 {[%emt 0:00:52]} 64. Bd6 {[%emt 0:00:21]} Kg4 {[%emt 0:00:16] Weighted Error Value: White=0.62/Black=0.26 (precise)} 0-1

[Event "Vienna Championship 2022"]
[Site "Vienna"]
[Date "2022.09.21"]
[Round "5.3"]
[White "Stanec, Nikolaus"]
[Black "Baumegger, Siegfried"]
[Result "1/2-1/2"]
[WhiteElo "2458"]
[BlackElo "2447"]
[Annotator "TA"]
[PlyCount "29"]
[EventDate "2022.09.17"]
[EventType "tourn"]
[EventCountry "AUT"]
[SourceTitle "playchess.com"]
[Source "ChessBase"]
[SourceQuality "1"]
[TimeControl "5400+30"]

{[%evp 12,14,20,15,14]} 1. e4 {[%emt 0:00:02]} c5 {[%emt 0:00:53]} 2. Nf3 {[%emt 0:00:18]} Nc6 {[%emt 0:01:10]} 3. Bb5 {[%emt 0:01:24]} g6 {[%emt 0:00:33]} 4. O-O {[%emt 0:00:35]} Bg7 {[%emt 0:00:06]} 5. Re1 {[%emt 0:01:14]} e5 {[%emt 0:00:34]} 6. d3 {[%emt 0:01:40]} Nge7 {[%emt 0:01:00]} 7. Nc3 {[%emt 0:00:22]} O-O {[%emt 0:01:07] [#] A rather calm draw. B31: Sicilian: 2...Nc6 3 Bb5 g6.} {Predecessor:} 8. a4 $146 d6 9. Bc4 h6 10. Nd5 Nxd5 11. Bxd5 Kh7 12. Nd2 f5 13. exf5 Bxf5 14. Nc4 Qd7 15. c3 {½-½ (24) Strikovic,A (2468)-Nestorovic,N (2470) Ruma 2020} 1/2-1/2

[Event "Vienna Championship 2022"]
[Site "Vienna"]
[Date "2022.09.21"]
[Round "5.4"]
[White "Peyrer, Konstantin"]
[Black "Halvax, Georg"]
[Result "1-0"]
[ECO "E06"]
[WhiteElo "2402"]
[BlackElo "2423"]
[Annotator "TA"]
[PlyCount "113"]
[EventDate "2022.09.17"]
[EventType "tourn"]
[EventCountry "AUT"]
[SourceTitle "playchess.com"]
[Source "ChessBase"]
[SourceQuality "1"]
[TimeControl "5400+30"]

{[%evp 13,113,11,12,0,4,0,0,-10,14,0,0,-3,-7,-16,0,-44,-31,-50,0,-60,-56,-47,-21,-39,-39,-49,-42,-45,-27,-28,-55,-91,-12,-40,-43,-48,-36,-61,-66,-161,-148,-211,7,18,19,27,587,583,825,501,764,768,775,771,668,771,762,754,711,587,645,628,632,625,603,429,616,586,568,566,568,568,568,557,952,983,968,933,2032,2115,2666,1845,2229,2159,1741,1695,2568,2175,2046,1418,2054,2046,1710,1678,1448,1047,29978,29979,29979,29979,29989,996]} 1. d4 {[%emt 0:00:08]} d5 {[%emt 0:00:24]} 2. c4 {[%emt 0:00:05]} e6 {[%emt 0:00:25]} 3. Nf3 {[%emt 0:00:05]} Nf6 {[%emt 0:00:30]} 4. g3 {[%emt 0:00:06]} Be7 {[%emt 0:00:19]} 5. Bg2 {[%emt 0:00:07]} O-O {[%emt 0:00:12]} 6. Qc2 {[%emt 0:00:04]} c5 {[%emt 0:00:07]} 7. O-O {[%emt 0:00:06]} Nc6 {[%emt 0:00:24]} 8. dxc5 {[%emt 0:04:10] E06: Closed Catalan: Early deviations.} d4 {[%emt 0:00:20]} 9. a3 {[%emt 0:00:39]} a5 {[%emt 0:00:08] Inhibits b4.} 10. Rd1 {[%emt 0:05:01] The position is equal.} Bxc5 {[%emt 0:01:32]} (10... e5 $5 {[%cal Re5e4]}) 11. Nc3 {[%emt 0:01:53]} e5 {[%emt 0:00:52]} 12. Nd5 {[%emt 0:01:06]} h6 {[%emt 0:00:37] Inhibits Ng5.} (12... Nxd5 $2 13. cxd5 Ne7 14. Qxc5 $18) 13. b3 {[%emt 0:05:56] [#]} Bg4 $146 {[%emt 0:02:30]} (13... Nxd5 $2 14. cxd5 Qxd5 15. Ng5 $1 $18 {[%mdl 512]}) ({Predecessor:} 13... Be6 14. e4 Bg4 15. Rf1 Rc8 16. Qd3 Re8 17. h3 Bh5 18. Nh4 Bf8 19. Bd2 Nxd5 20. exd5 {1-0 (40) Mikhalevski,V (2523)-Gerzhoy,L (2245) Tel Aviv 2001}) 14. Bb2 {[%emt 0:00:47]} Re8 {[%emt 0:06:08]} (14... Nxd5 $2 15. cxd5 Qe7 16. dxc6 $18) 15. Rac1 {[%emt 0:06:22]} Qd6 {[%emt 0:10:32]} ({Black should try} 15... Rc8 $15) 16. Kf1 {[%emt 0:26:40]} (16. Nd2 $11) 16... Rad8 $15 {[%emt 0:41:26]} (16... Bxa3 17. Nxf6+ Qxf6 18. Bxa3 $11) 17. Nd2 {[%emt 0:07:00]} Qf8 {[%emt 0:10:40]} ({But not} 17... Bxa3 18. Nxf6+ Qxf6 19. Bxa3 $14) 18. Nxf6+ {[%emt 0:04:32]} gxf6 {[%emt 0:00:01]} 19. Ne4 {[%emt 0:00:47]} Be7 {[%emt 0:00:22]} 20. h3 {[%emt 0:01:03]} Bh5 {[%emt 0:00:41][%cal Bg4h5,Bh5g6,Bg6f5][%mdl 32] ...f5 is the strong threat.} 21. g4 {[%emt 0:02:57]} Bg6 {[%emt 0:00:11]} 22. c5 {[%emt 0:00:06] [#]} Kg7 {[%emt 0:03:08]} (22... Qg7 $1 $17) 23. Rd3 {[%emt 0:05:20]} f5 {[%emt 0:01:01]} 24. gxf5 {[%emt 0:01:22]} Bxf5 {[%emt 0:00:02]} 25. Rg3+ {[%emt 0:00:52]} Kh8 {[%emt 0:01:58]} 26. b4 {[%emt 0:05:15]} ({White should play} 26. Qc4 $15) 26... axb4 {[%emt 0:02:20]} 27. axb4 {[%emt 0:00:08]} (27. Qd2 $17 {was called for.}) 27... Nxb4 $2 {[%emt 0:02:33]} (27... Bh4 $19 28. Qd2 Bxe4 29. Bxe4 Bxg3 30. fxg3 f5) 28. Qb3 $36 {[%emt 0:00:06][%mdl 2048] White has good play.} Nd5 {[%emt 0:12:49]} 29. Nd6 {[%emt 0:00:21]} Nf4 $2 {[%emt 0:00:06][%mdl 8192] Loses the game.} (29... Bxd6 $11 {and Black is okay.} 30. Qxd5 Bc7 31. Qxb7 Qe7) 30. Nxf5 $18 {[%emt 0:00:15]} Bg5 {[%emt 0:00:15]} 31. Rd1 {[%emt 0:02:25]} Rd7 {[%emt 0:00:37]} (31... Re6 $142 32. h4 Be7 33. Bxb7 Bxc5) 32. h4 {[%emt 0:01:35]} Bf6 {[%emt 0:00:29]} 33. Ba3 {[%emt 0:00:06] aiming for c6.} Ra8 {[%emt 0:00:12]} 34. c6 {[%emt 0:00:18]} d3 {[%emt 0:00:01]} 35. Rgxd3 {[%emt 0:07:00]} ({Stronger than} 35. Bxf8 dxe2+ 36. Ke1 exd1=Q+ 37. Qxd1 Nxg2+ 38. Rxg2 Rxd1+ 39. Kxd1 Rxf8 $11) 35... Rxa3 {[%emt 0:00:02]} 36. cxd7 {[%emt 0:00:33]} Rxb3 {[%emt 0:02:35]} 37. d8=Q {[%emt 0:00:11]} Bxd8 {[%emt 0:00:15]} 38. Rxd8 {[%emt 0:00:06]} ({Weaker is} 38. Rxb3 Bc7 $16) 38... Qxd8 {[%emt 0:00:03]} 39. Rxd8+ {[%emt 0:00:06]} Kh7 {[%emt 0:00:09]} 40. Be4 {[%emt 0:00:05] Inhibits Rb1+.} Ra3 {[%emt 0:00:17] ( -> ...Ra1+)} 41. Rd1 {[%emt 0:00:27] Prevents Ra1.} Kg6 {[%emt 0:00:43]} 42. e3 {[%emt 0:00:42]} Ne6 {[%emt 0:00:27]} 43. Nd4+ {[%emt 0:00:08]} Kh5 {[%emt 0:00:13]} 44. Nxe6 {[%emt 0:00:06]} fxe6 {[%emt 0:00:03]} 45. Bxb7 {[%emt 0:00:07]} Kxh4 {[%emt 0:00:20][%mdl 4096] Endgame KRB-KR} 46. Rd6 {[%emt 0:00:12]} Rb3 {[%emt 0:00:16]} 47. Bc8 {[%emt 0:00:05]} Rb8 {[%emt 0:00:05]} 48. Bxe6 {[%emt 0:00:06]} Kg5 {[%emt 0:00:05]} 49. Bd5 {[%emt 0:00:43] Hoping for Re6.} h5 {[%emt 0:00:18]} 50. Be4 {[%emt 0:00:24]} Rb4 {[%emt 0:00:28]} 51. Rg6+ {[%emt 0:00:09]} Kh4 {[%emt 0:00:06]} 52. Bf5 {[%emt 0:01:29]} Ra4 {[%emt 0:00:41]} 53. Re6 {[%emt 0:00:09]} Ra5 {[%emt 0:00:06]} 54. Kg2 {[%emt 0:00:15]} Ra8 {[%emt 0:02:07]} 55. Rxe5 {[%emt 0:00:41] White mates.} Rg8+ {[%emt 0:00:05]} 56. Kf1 {[%emt 0:00:08]} Rc8 {[%emt 0:00:01]} 57. Re4+ {[%emt 0:00:10] Weighted Error Value: White=0.37/Black=0.44} 1-0

[Event "Vienna Championship 2022"]
[Site "Vienna"]
[Date "2022.09.21"]
[Round "5.5"]
[White "Leisch, Lukas"]
[Black "Kruckenhauser, Arthur"]
[Result "1/2-1/2"]
[ECO "C47"]
[WhiteElo "2409"]
[BlackElo "2289"]
[Annotator "TA"]
[PlyCount "129"]
[EventDate "2022.09.17"]
[EventType "tourn"]
[EventCountry "AUT"]
[SourceTitle "playchess.com"]
[Source "ChessBase"]
[SourceQuality "1"]
[TimeControl "5400+30"]

{[%evp 17,129,6,12,-4,2,0,0,0,0,0,0,0,9,16,33,19,30,11,8,2,31,7,8,8,8,8,18,8,18,0,0,0,0,0,0,-8,-8,-4,-2,-2,0,0,0,0,10,0,0,0,-3,-4,0,-8,0,0,0,0,0,-7,0,-8,-8,-18,-18,-18,-7,-18,-22,-22,-47,-798,-772,-779,-770,-684,-657,-583,-397,-1754,-552,-1146,-567,-29977,-29972,-29980,-29981,-29981,0,0,0,0,0,0,0,0,0,0,0,0,0,0,0,0,0,0,0,0,0,0,0,0,0,0,0,0]} 1. e4 {[%emt 0:00:04]} e5 {[%emt 0:00:21]} 2. Nf3 {[%emt 0:00:07]} Nc6 {[%emt 0:00:04]} 3. Nc3 {[%emt 0:00:14]} Nf6 {[%emt 0:00:10]} 4. d4 {[%emt 0:00:06]} exd4 {[%emt 0:00:38]} 5. Nxd4 {[%emt 0:00:09]} Bb4 {[%emt 0:01:04]} 6. Nxc6 {[%emt 0:00:27]} bxc6 {[%emt 0:00:50]} 7. Bd3 {[%emt 0:00:07]} d5 {[%emt 0:00:58]} 8. exd5 {[%emt 0:00:25]} O-O $1 {[%emt 0:05:07][%mdl 4] is more profitable than 8...cxd5 at the moment.} 9. O-O {[%emt 0:00:16]} cxd5 {[%emt 0:11:54]} 10. h3 {[%emt 0:00:22] Prevents Bg4. C47: Scotch Four Knights and Four Knights with 4 g3.} c6 {[%emt 0:02:45]} 11. Qf3 {[%emt 0:00:10]} Re8 {[%emt 0:04:52]} 12. Bf4 {[%emt 0:05:50]} Bd6 {[%emt 0:02:37]} 13. Rfe1 {[%emt 0:01:51]} Be6 {[%emt 0:05:26]} 14. Ne2 {[%emt 0:22:36]} Rb8 {[%emt 0:05:58]} 15. b3 {[%emt 0:01:30]} c5 {[%emt 0:06:46]} 16. Rad1 {[%emt 0:05:06]} Rb6 {[%emt 0:04:10]} 17. Ng3 {[%emt 0:06:33]} Bxf4 {[%emt 0:05:23]} 18. Qxf4 {[%emt 0:00:07]} Rb4 {[%emt 0:00:29]} 19. Qf3 {[%emt 0:04:23][%cal Oc2c4]} Qb8 {[%emt 0:05:25] [#]} 20. Nh5 $146 {[%emt 0:14:54] Prevents Rf4.} ({Predecessor:} 20. Bf1 a5 21. Qc3 Qa7 22. Re5 h6 23. Rde1 Rbb8 24. Bd3 a4 25. Bf5 axb3 26. axb3 {1-0 (58) Alekseenko,K (2442)-Harutyunian,T (2334) Budva 2013}) 20... Nxh5 {[%emt 0:01:42]} 21. Qxh5 {[%emt 0:02:23]} g6 {[%emt 0:00:09]} 22. Qg5 {[%emt 0:00:45][%cal Oc2c4]} Qf4 {[%emt 0:04:12]} (22... Qd8 {keeps more tension.} 23. Qe5 Qb8 24. c3 Qxe5 25. Rxe5 Rbb8) 23. Qxf4 {[%emt 0:00:07]} Rxf4 {[%emt 0:00:03]} 24. g3 {[%emt 0:06:02]} Rb4 {[%emt 0:00:41]} 25. c4 {[%emt 0:02:33] Black must now prevent cxd5.} d4 {[%emt 0:04:27]} 26. Re5 {[%emt 0:02:31]} Rc8 {[%emt 0:00:09]} 27. g4 {[%emt 0:00:56]} Rb6 {[%emt 0:03:45]} 28. Rde1 {[%emt 0:01:05]} Kf8 {[%emt 0:03:25]} 29. f4 {[%emt 0:00:28]} Bd7 {[%emt 0:02:23]} 30. Kf2 {[%emt 0:02:16]} Re6 {[%emt 0:05:44]} 31. Rxe6 {[%emt 0:00:23]} fxe6 $11 {[%emt 0:00:43][%mdl 4096] Endgame KRB-KRB} 32. Kg3 {[%emt 0:01:05]} Ke7 {[%emt 0:01:43]} 33. h4 {[%emt 0:02:16]} Kd6 {[%emt 0:01:49]} 34. Rh1 {[%emt 0:07:01]} Bc6 {[%emt 0:01:08]} 35. Rh2 {[%emt 0:00:21]} Rf8 {[%emt 0:01:21]} 36. h5 {[%emt 0:06:46]} Be8 {[%emt 0:03:45]} 37. hxg6 {[%emt 0:00:23]} Bxg6 {[%emt 0:01:43]} 38. Bxg6 {[%emt 0:00:08]} hxg6 {[%emt 0:00:01] KR-KR} 39. Rh6 {[%emt 0:00:49]} d3 {[%emt 0:01:49][%cal Og6g5]} 40. Kf3 {[%emt 0:03:41]} d2 {[%emt 0:00:22]} 41. Rh1 {[%emt 0:00:28]} g5 {[%emt 0:00:54]} 42. f5 {[%emt 0:00:29]} exf5 {[%emt 0:00:25]} 43. gxf5 $2 {[%emt 0:00:21][%mdl 8192]} (43. Rd1 $15) 43... Ke5 $19 {[%emt 0:01:14]} 44. Ke2 {[%emt 0:02:36]} Rd8 {[%emt 0:00:08]} 45. Kd1 {[%emt 0:00:33]} Kxf5 {[%emt 0:00:33] [#] Threatens to win with ...g4.} 46. Rh7 {[%emt 0:00:04]} g4 {[%emt 0:01:40]} 47. Rxa7 $2 {[%emt 0:00:35]} (47. Rg7 Rd3 48. b4) 47... g3 {[%emt 0:00:55]} (47... Kf6 $142 {( -> ...g3)} 48. Ra6+ Kf5) 48. Rg7 {[%emt 0:00:19]} Kf4 {[%emt 0:00:08] And now ...Kf3 would win.} 49. a3 {[%emt 0:00:30]} Kf3 {[%emt 0:00:43]} 50. b4 {[%emt 0:00:58]} g2 {[%emt 0:01:13]} 51. bxc5 {[%emt 0:00:30]} Kf2 $2 {[%emt 0:00:03] [#]} (51... Rd4 {mates} 52. Rxg2 Kxg2 53. c6 Kf3 54. c7 Rxc4 55. c8=Q Rxc8 56. Kxd2 Ke4 57. a4 Ra8 58. a5 Rxa5 59. Kc3 Rc5+ 60. Kb4 Kd4 61. Kb3 Rc4 62. Kb2 Kd3 63. Kb3 Rh4 64. Kb2 Rb4+ 65. Ka3 Kc3 66. Ka2 Ra4+ 67. Kb1 Ra5 68. Kc1 Ra1#) 52. c6 $1 $11 {[%emt 0:01:20] The position is equal.} g1=Q+ {[%emt 0:01:51]} 53. Rxg1 {[%emt 0:00:02]} Kxg1 {[%emt 0:00:03] KR-K3P} 54. c7 $1 {[%emt 0:00:03]} Rc8 {[%emt 0:00:54]} 55. Kxd2 {[%emt 0:00:04]} Rxc7 {[%emt 0:00:16] KR-KPP} 56. Kd3 {[%emt 0:00:14]} Kf2 {[%emt 0:00:49]} 57. Kd4 {[%emt 0:00:01]} Ke2 {[%emt 0:00:29]} 58. c5 {[%emt 0:00:24][%cal Bc4c5,Bc5c6][%mdl 32]} Kd2 {[%emt 0:00:11]} 59. a4 {[%emt 0:02:11]} Ra7 {[%emt 0:00:43]} 60. c6 {[%emt 0:00:30]} Kc2 {[%emt 0:00:40]} 61. Kc5 {[%emt 0:00:16]} Rxa4 {[%emt 0:00:32]} 62. c7 {[%emt 0:00:12]} Kc3 {[%emt 0:00:05]} 63. Kc6 {[%emt 0:00:23]} Rc4+ {[%emt 0:00:12]} 64. Kd7 {[%emt 0:00:08]} Rxc7+ {[%emt 0:00:06]} 65. Kxc7 {[%emt 0:00:05] And White is the lucky defender.  Weighted Error Value: White=0.35/Black=0.19 (very precise)} 1/2-1/2